fUST/lending_fUST_20240714
["ID","MTS","AMOUNT","RATE_DAILY","PERIOD"]
[332058076,1720945839249,-827.353758,0.00025753,7]
[332058077,1720945839259,-180.90179,0.00025753,7]
[332058078,1720945839268,-827.353758,0.00025753,7]
[332058079,1720945839279,-180.90179,0.00025753,7]
[332058080,1720945839289,-500.0,0.00025753,2]
[332058081,1720945839299,-500.0,0.00025753,2]
[332058082,1720945839308,-583.3,0.00025753,2]
[332058083,1720945839318,-500.0,0.00025753,2]
[332058084,1720945839327,-660.41,0.00025753,2]
[332058085,1720945839336,-315.1860659,0.00025753,2]
[332058086,1720945839345,-500.0,0.00025753,2]
[332058087,1720945839355,-500.0,0.00025753,2]
[332058088,1720945839364,-500.0,0.00025753,2]
[332058089,1720945839373,-14571.43,0.00025753,2]
[332058090,1720945839382,-607.19484177,0.00025753,2]
[332058091,1720945839391,-500.0,0.00025753,2]
[332058092,1720945839400,-207.231677,0.00025753,7]
[332058093,1720945839410,-207.231677,0.00025753,7]
[332058095,1720945839419,-500.0,0.00025753,2]
[332058096,1720945839429,-186.575251,0.00025753,7]
[332058099,1720945839438,-186.575251,0.00025753,7]
[332058101,1720945839448,-1723.05,0.00025753,2]
[332058102,1720945839458,-509.00051779,0.00025753,2]
[332058103,1720945839468,-275.257723,0.00025753,7]
[332058104,1720945839477,-500.0,0.00025753,2]
[332058105,1720945839487,-151.0,0.00025753,7]
[332058106,1720945839497,-500.0,0.00025753,2]
[332058107,1720945839507,-500.0,0.00025753,2]
[332058109,1720945839516,-151.0,0.00025789,2]
[332058111,1720945839526,-151.0,0.00025789,2]
[332058113,1720945839537,-1671.71669364,0.00025828,2]
[332058116,1720945839548,-156.270943,0.00025897,2]
[332058118,1720945839557,-300.0,0.00025902,2]
[332058120,1720945839567,-258.89478883,0.00025927,2]
[332058122,1720945839576,-1000.0,0.00025938,2]
[332058124,1720945839585,-300.0,0.0002594,2]
[332058126,1720945839594,-2400.0,0.0002594,2]
[332058128,1720945839604,-1000.0,0.00025948,2]
[332058130,1720945839613,-1000.0,0.0002595,2]
[332058132,1720945839623,-1000.0,0.00025963,2]
[332058134,1720945839633,-1000.0,0.00025965,2]
[332058136,1720945839642,-1000.0,0.0002597,2]
[332058138,1720945839652,-364.71330362,0.00025979,2]
[332058140,1720945839661,-11037.9792937,0.0002599,3]
[332058142,1720945839671,-1000.0,0.00025998,2]
[332058144,1720945839681,-4623.62046481,0.00026,5]
[332058146,1720945839690,-2930.80044754,0.00026,2]
[332058148,1720945839704,-1662.91,0.00026,2]
[332058151,1720945839717,-44306.86881323,0.00026,2]
[332058153,1720945839730,-34777.6577796,0.00026,2]
[332058155,1720945839740,-151.0,0.00026,7]
[332058157,1720945839749,-151.0,0.00026,7]
[332058159,1720945839758,-151.0,0.00026,7]
[332058161,1720945839768,-151.0,0.00026,7]
[332058163,1720945839777,-297.990503,0.00026,7]
[332058165,1720945839788,-297.990503,0.00026,7]
[332058167,1720945839798,-378.568652,0.00026,7]
[332058169,1720945839807,-378.568652,0.00026,7]
[332058171,1720945839817,-322.105572,0.00026,7]
[332058173,1720945839827,-322.105572,0.00026,7]
[332058175,1720945839836,-207.231677,0.00026,7]
[332058177,1720945839846,-207.231677,0.00026,7]
[332058179,1720945839855,-151.0,0.00026,7]
[332058181,1720945839866,-151.0,0.00026,7]
[332058183,1720945839876,-186.575251,0.00026,7]
[332058185,1720945839885,-186.575251,0.00026,7]
[332058187,1720945839895,-151.0,0.00026,7]
[332058189,1720945839905,-151.0,0.00026,7]
[332058191,1720945839914,-151.0,0.00026001,2]
[332058193,1720945839924,-151.0,0.00026001,2]
[332058195,1720945839933,-1000.0,0.00026008,2]
[332058197,1720945839943,-1000.0,0.00026016,2]
[332058199,1720945839952,-5518.98964685,0.00026017,3]
[332058201,1720945839962,-1000.0,0.00026023,2]
[332058203,1720945839971,-1000.0,0.00026024,2]
[332058205,1720945839981,-1425.59,0.00026027,2]
[332058207,1720945839991,-500.0,0.00026027,2]
[332058209,1720945840000,-1480.74,0.00026027,2]
[332058211,1720945840010,-430.00890339,0.00026027,2]
[332058213,1720945840020,-500.0,0.00026027,2]
[332058215,1720945840028,-245.92697565,0.00026027,2]
[332058225,1720945840111,-655.64,0.00026027,2]
[332058227,1720945840131,-630.07303434,0.00026027,2]
[332058229,1720945840140,-500.0,0.00026027,2]
[332058231,1720945840151,-500.0,0.00026027,2]
[332058233,1720945840161,-500.0,0.00026027,2]
[332058235,1720945840170,-956.89,0.00026027,2]
[332058237,1720945840179,-500.0,0.00026027,2]
[332058239,1720945840191,-302.85142899,0.00026027,2]
[332058241,1720945840201,-500.0,0.00026027,2]
[332058243,1720945840210,-600.95,0.00026027,2]
[332058245,1720945840220,-500.0,0.00026027,2]
[332058247,1720945840230,-500.0,0.00026027,2]
[332058249,1720945840239,-500.0,0.00026027,2]
[332058251,1720945840249,-1000.0,0.00026027,2]
[332058253,1720945840258,-4145.8,0.00026027,2]
[332058255,1720945840267,-500.0,0.00026027,2]
[332058257,1720945840277,-500.0,0.00026027,2]
[332058259,1720945840290,-500.0,0.00026027,2]
[332058261,1720945840299,-347.78788,0.00026027,7]
[332058263,1720945840309,-500.0,0.00026027,2]
[332058265,1720945840319,-500.0,0.00026027,2]
[332058267,1720945840328,-347.78788,0.00026027,7]
[332058269,1720945840337,-755.19,0.00026027,2]
[332058271,1720945840346,-552.98300427,0.00026027,2]
[332058273,1720945840355,-1044.49,0.00026027,4]
[332058275,1720945840365,-225.9769148,0.00026027,2]
[332058277,1720945840374,-151.0,0.00026027,7]
[332058279,1720945840383,-151.0,0.00026027,7]
[332058281,1720945840393,-500.0,0.00026027,2]
[332058283,1720945840402,-500.0,0.00026027,2]
[332058285,1720945840412,-500.0,0.00026027,2]
[332058287,1720945840421,-151.0,0.00026027,7]
[332058289,1720945840431,-151.0,0.00026027,7]
[332058291,1720945840440,-1116.64,0.00026027,2]
[332058293,1720945840450,-980.28,0.00026027,2]
[332058295,1720945840459,-333.550479,0.00026027,7]
[332058297,1720945840468,-333.550479,0.00026027,7]
[332058299,1720945840477,-500.0,0.00026027,2]
[332058301,1720945840486,-500.0,0.00026027,2]
[332058303,1720945840497,-151.0,0.00026027,7]
[332058305,1720945840506,-500.0,0.00026027,2]
[332058307,1720945840516,-594.74,0.00026027,2]
[332058309,1720945840525,-500.0,0.00026027,2]
[332058311,1720945840536,-500.0,0.00026027,2]
[332058313,1720945840545,-500.0,0.00026027,2]
[332058315,1720945840554,-500.0,0.00026027,2]
[332058317,1720945840564,-410.614667,0.00026027,7]
[332058319,1720945840574,-410.614667,0.00026027,7]
[332058321,1720945840583,-497.54234288,0.00026027,2]
[332058323,1720945840593,-827.353758,0.00026027,7]
[332058325,1720945840602,-450.83672143,0.00026027,2]
[332058327,1720945840611,-180.90179,0.00026027,7]
[332058329,1720945840620,-180.90179,0.00026027,7]
[332058331,1720945840629,-500.0,0.00026027,2]
[332058333,1720945840639,-827.353758,0.00026027,7]
[332058335,1720945840648,-583.3,0.00026027,2]
[332058337,1720945840657,-500.0,0.00026027,2]
[332058339,1720945840666,-500.0,0.00026027,2]
[332058341,1720945840675,-660.41,0.00026027,2]
[332058343,1720945840683,-500.0,0.00026027,2]
[332058345,1720945840692,-500.0,0.00026027,2]
[332058347,1720945840701,-500.0,0.00026027,2]
[332058349,1720945840711,-14571.43,0.00026027,2]
[332058351,1720945840720,-500.0,0.00026027,2]
[332058353,1720945840731,-500.0,0.00026027,2]
[332058355,1720945840740,-1723.05,0.00026027,2]
[332058357,1720945840749,-500.0,0.00026027,2]
[332058359,1720945840758,-500.0,0.00026027,2]
[332058361,1720945840767,-268.64485697,0.00026027,2]
[332058363,1720945840777,-1000.0,0.00026045,2]
[332058365,1720945840787,-1000.0,0.0002605,2]
[332058367,1720945840797,-1000.0,0.0002605,2]
[332058369,1720945840806,-300.0,0.00026077,2]
[332058371,1720945840815,-1000.0,0.0002608,2]
[332058373,1720945840824,-1000.0,0.00026086,2]
[332058375,1720945840833,-1000.0,0.00026089,2]
[332058377,1720945840843,-300.0,0.00026091,2]
[332058379,1720945840853,-660.57992245,0.000261,2]
[332058381,1720945840862,-1439.65173191,0.00026107,2]
[332058383,1720945840871,-1000.0,0.00026127,2]
[332058385,1720945840881,-1000.0,0.00026129,2]
[332058387,1720945840890,-1000.0,0.0002614,2]
[332058389,1720945840899,-1000.0,0.00026145,2]
[332058391,1720945840908,-1000.0,0.00026155,2]
[332058393,1720945840917,-1000.0,0.00026162,2]
[332058395,1720945840926,-1000.0,0.00026178,2]
[332058397,1720945840936,-1000.0,0.0002618,2]
[332058399,1720945840945,-151.0,0.00026213,2]
[332058401,1720945840954,-151.0,0.00026213,2]
[332058403,1720945840964,-247.65219197,0.00026274,2]
[332058405,1720945840973,-1425.59,0.00026301,2]
[332058407,1720945840982,-500.0,0.00026301,2]
[332058409,1720945840992,-1480.74,0.00026301,2]
[332058411,1720945841001,-500.0,0.00026301,2]
[332058413,1720945841011,-655.64,0.00026301,2]
[332058415,1720945841020,-151.0,0.00026301,7]
[332058417,1720945841030,-460.71110003,0.00026301,2]
[332058419,1720945841041,-151.0,0.00026301,7]
[332058421,1720945841051,-151.0,0.00026301,7]
[332058423,1720945841060,-500.0,0.00026301,2]
[332058425,1720945841070,-500.0,0.00026301,2]
[332058427,1720945841080,-151.0,0.00026301,7]
[332058430,1720945841090,-956.89,0.00026301,2]
[332058432,1720945841099,-500.0,0.00026301,2]
[332058434,1720945841112,-500.0,0.00026301,2]
[332058436,1720945841122,-600.95,0.00026301,2]
[332058438,1720945841131,-385.96635781,0.00026301,2]
[332058440,1720945841141,-500.0,0.00026301,2]
[332058442,1720945841151,-500.0,0.00026301,2]
[332058444,1720945841160,-297.990503,0.00026301,7]
[332058446,1720945841170,-297.990503,0.00026301,7]
[332058448,1720945841179,-58.18128136,0.00026301,2]
[332058450,1720945841194,-4087.61871864,0.00026301,2]
[332058452,1720945841203,-500.0,0.00026301,2]
[332058454,1720945841212,-252.96943693,0.00026301,2]
[332058583,1720945842459,-5522.11991917,0.00024242,2]
[332058585,1720945842468,-500.0,0.00024657,2]
[332058586,1720945842477,-500.0,0.00024657,2]
[332058588,1720945842486,-500.0,0.00024931,2]
[332058590,1720945842495,-308.31437199,0.00025,2]
[332058592,1720945842505,-500.0,0.00025205,2]
[332058595,1720945842515,-311.7748232,0.00025479,2]
[332058597,1720945842524,-8742.83315265,0.00025501,2]
[332058598,1720945842535,-17148.26,0.00026291,3]
[332058601,1720945842544,-247.03056307,0.00026301,2]
[332058603,1720945842554,-500.0,0.00026301,2]
[332058605,1720945842564,-500.0,0.00026301,2]
[332058607,1720945842573,-500.0,0.00026301,2]
[332058609,1720945842582,-755.19,0.00026301,2]
[332058610,1720945842592,-1044.49,0.00026301,4]
[332058612,1720945842601,-386.48654613,0.00026301,2]
[332058614,1720945842610,-500.0,0.00026301,2]
[332058616,1720945842619,-1116.64,0.00026301,2]
[332058618,1720945842628,-980.28,0.00026301,2]
[332058621,1720945842637,-500.0,0.00026301,2]
[332058623,1720945842646,-500.0,0.00026301,2]
[332058625,1720945842656,-500.0,0.00026301,2]
[332058628,1720945842665,-151.0,0.00026301,7]
[332058630,1720945842675,-594.74,0.00026301,2]
[332058631,1720945842684,-500.0,0.00026301,2]
[332058632,1720945842694,-500.0,0.00026301,2]
[332058633,1720945842703,-500.0,0.00026301,2]
[332058634,1720945842712,-500.0,0.00026301,2]
[332058635,1720945842721,-410.614667,0.00026301,7]
[332058636,1720945842730,-410.614667,0.00026301,7]
[332058637,1720945842740,-827.353758,0.00026301,7]
[332058638,1720945842750,-180.90179,0.00026301,7]
[332058639,1720945842759,-180.90179,0.00026301,7]
[332058640,1720945842768,-500.0,0.00026301,2]
[332058641,1720945842778,-827.353758,0.00026301,7]
[332058642,1720945842790,-583.3,0.00026301,2]
[332058643,1720945842799,-500.0,0.00026301,2]
[332058644,1720945842809,-500.0,0.00026301,2]
[332058645,1720945842818,-660.41,0.00026301,2]
[332058646,1720945842827,-500.0,0.00026301,2]
[332058647,1720945842837,-500.0,0.00026301,2]
[332058648,1720945842846,-500.0,0.00026301,2]
[332058649,1720945842855,-14571.43,0.00026301,2]
[332058650,1720945842865,-500.0,0.00026301,2]
[332058651,1720945842874,-207.231677,0.00026301,7]
[332058652,1720945842883,-207.231677,0.00026301,7]
[332058653,1720945842892,-500.0,0.00026301,2]
[332058654,1720945842902,-186.575251,0.00026301,7]
[332058655,1720945842911,-186.575251,0.00026301,7]
[332058656,1720945842921,-1723.05,0.00026301,2]
[332058657,1720945842930,-330.30569034,0.00026301,2]
[332058658,1720945842940,-151.0,0.00026301,7]
[332058659,1720945842950,-500.0,0.00026301,2]
[332058661,1720945842959,-178.8,0.00026356,2]
[332058663,1720945842968,-1671.71669364,0.00026418,2]
[332058665,1720945842978,-151.0,0.00026425,2]
[332058667,1720945842988,-151.0,0.00026425,2]
[332058669,1720945842997,-7458.94652043,0.0002649,2]
[332058671,1720945843007,-347.78788,0.0002649,7]
[332058673,1720945843016,-347.78788,0.0002649,7]
[332058675,1720945843025,-151.0,0.0002649,7]
[332058677,1720945843037,-151.0,0.0002649,7]
[332058679,1720945843046,-267.551791,0.0002649,7]
[332058681,1720945843055,-151.0,0.0002649,7]
[332058683,1720945843064,-333.550479,0.0002649,7]
[332058685,1720945843074,-333.550479,0.0002649,7]
[332058687,1720945843083,-378.568652,0.0002649,7]
[332058688,1720945843092,-378.568652,0.0002649,7]
[332058691,1720945843102,-322.105572,0.0002649,7]
[332058692,1720945843196,-322.105572,0.0002649,7]
[332058693,1720945843205,-151.0,0.0002649,7]
[332058694,1720945843214,-151.0,0.0002649,7]
[332058695,1720945843223,-151.0,0.0002649,7]
[332058696,1720945843233,-3000.0,0.000265,2]
[332058697,1720945843243,-3000.0,0.0002651,2]
[332058698,1720945843252,-3000.0,0.0002652,2]
[332058699,1720945843262,-3000.0,0.0002653,2]
[332058700,1720945843271,-626.81389372,0.00026539,2]
[332058701,1720945843281,-3000.0,0.0002654,2]
[332058702,1720945843293,-3000.0,0.0002655,2]
[332058703,1720945843303,-1671.71669364,0.00026554,2]
[332058704,1720945843313,-3000.0,0.0002656,2]
[332058705,1720945843324,-3000.0,0.0002657,2]
[332058706,1720945843334,-1425.59,0.00026575,2]
[332058707,1720945843343,-500.0,0.00026575,2]
[332058708,1720945843352,-1480.74,0.00026575,2]
[332058709,1720945843361,-500.0,0.00026575,2]
[332058710,1720945843371,-655.64,0.00026575,2]
[332058711,1720945843380,-151.0,0.00026575,7]
[332058712,1720945843389,-151.0,0.00026575,7]
[332058713,1720945843398,-500.0,0.00026575,2]
[332058715,1720945843408,-500.0,0.00026575,2]
[332058717,1720945843417,-151.0,0.00026575,7]
[332058718,1720945843427,-956.89,0.00026575,2]
[332058721,1720945843436,-500.0,0.00026575,2]
[332058722,1720945843445,-482.23787411,0.00026575,2]
[332058723,1720945843454,-600.95,0.00026575,2]
[332058724,1720945843465,-500.0,0.00026575,2]
[332058725,1720945843474,-500.0,0.00026575,2]
[332058726,1720945843484,-297.990503,0.00026575,7]
[332058727,1720945843493,-297.990503,0.00026575,7]
[332058728,1720945843503,-4145.8,0.00026575,2]
[332058729,1720945843512,-500.0,0.00026575,2]
[332058730,1720945843522,-500.0,0.00026575,2]
[332058731,1720945843531,-500.0,0.00026575,2]
[332058732,1720945843543,-500.0,0.00026575,2]
[332058733,1720945843552,-755.19,0.00026575,2]
[332058734,1720945843562,-1044.49,0.00026575,4]
[332058735,1720945843571,-500.0,0.00026575,2]
[332058736,1720945843581,-1116.64,0.00026575,2]
[332058737,1720945843590,-980.28,0.00026575,2]
[332058738,1720945843600,-500.0,0.00026575,2]
[332058739,1720945843609,-500.0,0.00026575,2]
[332058740,1720945843618,-500.0,0.00026575,2]
[332058741,1720945843628,-594.74,0.00026575,2]
[332058742,1720945843638,-500.0,0.00026575,2]
[332058743,1720945843648,-500.0,0.00026575,2]
[332058744,1720945843658,-500.0,0.00026575,2]
[332058745,1720945843668,-500.0,0.00026575,2]
[332058746,1720945843678,-500.0,0.00026575,2]
[332058747,1720945843687,-583.3,0.00026575,2]
[332058748,1720945843696,-500.0,0.00026575,2]
[332058749,1720945843705,-500.0,0.00026575,2]
[332058750,1720945843715,-660.41,0.00026575,2]
[332058751,1720945843724,-500.0,0.00026575,2]
[332058752,1720945843734,-500.0,0.00026575,2]
[332058753,1720945843743,-500.0,0.00026575,2]
[332058754,1720945843752,-14571.43,0.00026575,2]
[332058755,1720945843762,-500.0,0.00026575,2]
[332058756,1720945843772,-500.0,0.00026575,2]
[332058757,1720945843782,-1723.05,0.00026575,2]
[332058758,1720945843793,-500.0,0.00026575,2]
[332058759,1720945843803,-3000.0,0.0002658,2]
[332058760,1720945843813,-3000.0,0.0002659,2]
[332058761,1720945843823,-3000.0,0.000266,2]
[332058762,1720945843832,-2322.45532953,0.0002661,2]
[332058860,1720945845257,-677.54467047,0.0002661,2]
[332058862,1720945845267,-3000.0,0.0002662,2]
[332058864,1720945845277,-3000.0,0.0002663,2]
[332058866,1720945845286,-151.0,0.00026637,2]
[332058868,1720945845296,-151.0,0.00026637,2]
[332058870,1720945845306,-3000.0,0.0002664,2]
[332058872,1720945845315,-3000.0,0.0002665,2]
[332058874,1720945845325,-3000.0,0.0002666,2]
[332058877,1720945845334,-3000.0,0.0002667,2]
[332058879,1720945845344,-151.0,0.0002667,7]
[332058881,1720945845353,-410.614667,0.0002667,7]
[332058883,1720945845363,-410.614667,0.0002667,7]
[332058885,1720945845372,-827.353758,0.0002667,7]
[332058887,1720945845383,-180.90179,0.0002667,7]
[332058889,1720945845392,-180.90179,0.0002667,7]
[332058891,1720945845402,-827.353758,0.0002667,7]
[332058893,1720945845411,-3000.0,0.0002668,2]
[332058895,1720945845420,-3000.0,0.0002669,2]
[332058897,1720945845430,-3000.0,0.000267,2]
[332058899,1720945845439,-3000.0,0.0002671,2]
[332058901,1720945845448,-347.78788,0.0002671,7]
[332058902,1720945845458,-347.78788,0.0002671,7]
[332058904,1720945845467,-151.0,0.0002671,7]
[332058906,1720945845477,-151.0,0.0002671,7]
[332058908,1720945845486,-151.0,0.0002671,7]
[332058910,1720945845496,-333.550479,0.0002671,7]
[332058912,1720945845505,-333.550479,0.0002671,7]
[332058914,1720945845514,-3000.0,0.0002672,2]
[332058916,1720945845523,-207.231677,0.0002672,7]
[332058918,1720945845533,-207.231677,0.0002672,7]
[332058921,1720945845544,-186.575251,0.0002672,7]
[332058924,1720945845553,-186.575251,0.0002672,7]
[332058927,1720945845562,-151.0,0.0002672,7]
[332058930,1720945845572,-3000.0,0.0002673,2]
[332058933,1720945845581,-3000.0,0.0002674,2]
[332058936,1720945845591,-626.81389372,0.00026746,2]
[332058939,1720945845600,-5474.942133,0.0002675,2]
[332058941,1720945845610,-154.59445059,0.00026753,2]
[332058943,1720945845619,-150.65189833,0.00026821,2]
[332058945,1720945845628,-894.05585834,0.00026848,2]
[332058947,1720945845637,-1425.59,0.00026849,2]
[332058948,1720945845647,-500.0,0.00026849,2]
[332058949,1720945845656,-1480.74,0.00026849,2]
[332058950,1720945845665,-500.0,0.00026849,2]
[332058951,1720945845675,-655.64,0.00026849,2]
[332058953,1720945845686,-151.0,0.00026849,7]
[332058955,1720945845697,-250.157367,0.00026849,7]
[332058957,1720945845706,-500.0,0.00026849,2]
[332058960,1720945845717,-500.0,0.00026849,2]
[332058962,1720945845727,-151.0,0.00026849,7]
[332058964,1720945845737,-956.89,0.00026849,2]
[332058966,1720945845746,-500.0,0.00026849,2]
[332058968,1720945845756,-600.95,0.00026849,2]
[332058970,1720945845765,-500.0,0.00026849,2]
[332058972,1720945845775,-500.0,0.00026849,2]
[332058974,1720945845784,-297.990503,0.00026849,7]
[332058976,1720945845795,-297.990503,0.00026849,7]
[332058978,1720945845804,-4145.8,0.00026849,2]
[332058981,1720945845814,-500.0,0.00026849,2]
[332058983,1720945845824,-151.0,0.00026849,2]
[332058985,1720945845833,-151.0,0.00026849,2]
[332058987,1720945845842,-377.12976595,0.00026849,2]
[332058989,1720945845851,-553.31966395,0.00026849,2]
[332058991,1720945845860,-500.0,0.00026849,2]
[332058993,1720945845870,-755.19,0.00026849,2]
[332058995,1720945845879,-1044.49,0.00026849,4]
[332058997,1720945845889,-500.0,0.00026849,2]
[332058999,1720945845898,-1116.64,0.00026849,2]
[332059001,1720945845908,-980.28,0.00026849,2]
[332059003,1720945845917,-500.0,0.00026849,2]
[332059005,1720945845926,-184.87929523,0.00026849,2]
[332059007,1720945845936,-500.0,0.00026849,2]
[332059009,1720945845945,-594.74,0.00026849,2]
[332059011,1720945845955,-500.0,0.00026849,2]
[332059013,1720945845965,-500.0,0.00026849,2]
[332059015,1720945845974,-500.0,0.00026849,2]
[332059017,1720945845983,-500.0,0.00026849,2]
[332059019,1720945845993,-500.0,0.00026849,2]
[332059021,1720945846003,-583.3,0.00026849,2]
[332059023,1720945846012,-500.0,0.00026849,2]
[332059025,1720945846022,-378.568652,0.00026849,7]
[332059027,1720945846031,-500.0,0.00026849,2]
[332059029,1720945846041,-378.568652,0.00026849,7]
[332059031,1720945846050,-660.41,0.00026849,2]
[332059033,1720945846059,-500.0,0.00026849,2]
[332059035,1720945846069,-500.0,0.00026849,2]
[332059037,1720945846078,-322.105572,0.00026849,7]
[332059039,1720945846088,-500.0,0.00026849,2]
[332059041,1720945846097,-322.105572,0.00026849,7]
[332059043,1720945846106,-14571.43,0.00026849,2]
[332059045,1720945846119,-500.0,0.00026849,2]
[332059047,1720945846128,-332.28812319,0.00026849,2]
[332059049,1720945846137,-151.0,0.00026849,7]
[332059051,1720945846147,-151.0,0.00026849,7]
[332059053,1720945846157,-151.0,0.00026849,7]
[332059055,1720945846166,-1723.05,0.00026849,2]
[332059057,1720945846176,-500.0,0.00026849,2]
[332059059,1720945846186,-151.0,0.00026849,7]
[332059061,1720945846197,-151.0,0.00026849,7]
[332059063,1720945846206,-151.0,0.00026849,7]
[332059065,1720945846216,-200.804126,0.00026849,7]
[332059067,1720945846225,-626.81389372,0.00026861,2]
[332059069,1720945846234,-626.81389372,0.00026971,2]
[332059071,1720945846243,-158.28553448,0.00026985,2]
[332059073,1720945846252,-1664.95195615,0.00027,4]
[332059075,1720945846262,-966.54780921,0.00027,15]
[332059077,1720945846271,-1671.71669364,0.00027025,2]
[332059079,1720945846280,-626.81389372,0.00027046,2]
[332059081,1720945846291,-306.0,0.0002707,2]
[332059083,1720945846301,-153.0,0.0002707,2]
[332059085,1720945846310,-167.42203445,0.00027078,2]
[332059087,1720945846319,-153.0,0.00027096,2]
[332059089,1720945846328,-153.0,0.00027096,2]
[332059091,1720945846337,-153.0,0.00027096,2]
[332059093,1720945846347,-153.0,0.00027096,2]
[332059095,1720945846356,-1425.59,0.00027123,2]
[332059097,1720945846365,-500.0,0.00027123,2]
[332059099,1720945846374,-1480.74,0.00027123,2]
[332059100,1720945846384,-301.03811008,0.00027123,2]
[332059102,1720945846393,-655.64,0.00027123,2]
[332059104,1720945846403,-500.0,0.00027123,2]
[332059107,1720945846412,-500.0,0.00027123,2]
[332059109,1720945846421,-956.89,0.00027123,2]
[332059111,1720945846431,-500.0,0.00027123,2]
[332059113,1720945846441,-600.95,0.00027123,2]
[332059115,1720945846449,-500.0,0.00027123,2]
[332059117,1720945846459,-500.0,0.00027123,2]
[332059119,1720945846468,-4145.8,0.00027123,2]
[332059121,1720945846477,-394.68451402,0.00027123,2]
[332059123,1720945846486,-347.78788,0.00027123,7]
[332059125,1720945846497,-500.0,0.00027123,2]
[332059127,1720945846506,-347.78788,0.00027123,7]
[332059129,1720945846515,-755.19,0.00027123,2]
[332059131,1720945846525,-1044.49,0.00027123,4]
[332059133,1720945846535,-151.0,0.00027123,7]
[332059135,1720945846548,-151.0,0.00027123,7]
[332059137,1720945846559,-500.0,0.00027123,2]
[332059139,1720945846570,-151.0,0.00027123,7]
[332059141,1720945846579,-1116.64,0.00027123,2]
[332059143,1720945846588,-980.28,0.00027123,2]
[332059145,1720945846598,-333.550479,0.00027123,7]
[332059147,1720945846608,-333.550479,0.00027123,7]
[332059149,1720945846616,-500.0,0.00027123,2]
[332059151,1720945846625,-500.0,0.00027123,2]
[332059153,1720945846635,-151.0,0.00027123,7]
[332059155,1720945846644,-594.74,0.00027123,2]
[332059157,1720945846653,-500.0,0.00027123,2]
[332059159,1720945846662,-500.0,0.00027123,2]
[332059161,1720945846671,-500.0,0.00027123,2]
[332059163,1720945846680,-542.11979795,0.00027123,2]
[332059165,1720945846690,-410.614667,0.00027123,7]
[332059167,1720945846699,-410.614667,0.00027123,7]
[332059169,1720945846709,-827.353758,0.00027123,7]
[332059171,1720945846718,-180.90179,0.00027123,7]
[332059173,1720945846728,-180.90179,0.00027123,7]
[332059175,1720945846737,-500.0,0.00027123,2]
[332059185,1720945846821,-827.353758,0.00027123,7]
[332059187,1720945846832,-583.3,0.00027123,2]
[332059189,1720945846842,-500.0,0.00027123,2]
[332059191,1720945846851,-660.41,0.00027123,2]
[332059193,1720945846861,-500.0,0.00027123,2]
[332059195,1720945846870,-500.0,0.00027123,2]
[332059196,1720945846880,-500.0,0.00027123,2]
[332059197,1720945846889,-14571.43,0.00027123,2]
[332059198,1720945846899,-519.79544256,0.00027123,2]
[332059199,1720945846908,-1723.05,0.00027123,2]
[332059200,1720945846918,-500.0,0.00027123,2]
[332059201,1720945846928,-163.8038411,0.00027123,2]